[Event "*** Titled Tuesday Blitz"]
[Site "Chess.com"]
[Date "2020.04.21"]
[Round "7"]
[White "Zq1"]
[Black "Irishchessman16"]
[Result "1-0"]
[WhiteElo "2571"]
[BlackElo "2399"]
[TimeControl "180+1"]
[EndTime "11:19:41 PDT"]
[Termination "Zq1 won by resignation"]

1. d4 {[%clk 0:03:00.9]} 1... f5 {[%clk 0:02:56.9]} 2. Nf3 {[%clk 0:02:59.8]}
2... Nf6 {[%clk 0:02:56.6]} 3. Bg5 {[%clk 0:02:59.5]} 3... e6 {[%clk 0:02:54.3]}
4. Nbd2 {[%clk 0:02:58.4]} 4... d5 {[%clk 0:02:50.3]} 5. e3 {[%clk 0:02:57.4]}
5... Bd6 {[%clk 0:02:48.2]} 6. c4 {[%clk 0:02:56.8]} 6... c6 {[%clk 0:02:47.7]}
7. Bd3 {[%clk 0:02:54.4]} 7... O-O {[%clk 0:02:48]} 8. O-O {[%clk 0:02:51.8]}
8... Nbd7 {[%clk 0:02:48.5]} 9. cxd5 {[%clk 0:02:51.1]} 9... exd5 {[%clk
0:02:39.3]} 10. Bxf5 {[%clk 0:02:50.3]} 10... Qe8 {[%clk 0:02:39.9]} 11. Qc2
{[%clk 0:02:32.5]} 11... h6 {[%clk 0:02:31.3]} 12. Bh4 {[%clk 0:02:25.7]} 12...
Nb6 {[%clk 0:02:28.8]} 13. Bxc8 {[%clk 0:02:21.1]} 13... Rxc8 {[%clk 0:02:28]}
14. Bg3 {[%clk 0:02:20.3]} 14... Bxg3 {[%clk 0:02:27.1]} 15. hxg3 {[%clk
0:02:19.4]} 15... Ng4 {[%clk 0:02:27.7]} 16. Nh2 {[%clk 0:02:10.1]} 16... Nxh2
{[%clk 0:02:20.4]} 17. Kxh2 {[%clk 0:02:09.6]} 17... Qh5+ {[%clk 0:02:20.9]} 18.
Kg1 {[%clk 0:02:09.1]} 18... Rf6 {[%clk 0:02:20.9]} 19. Qd1 {[%clk 0:01:55.5]}
19... Qf7 {[%clk 0:02:18.1]} 20. Nf3 {[%clk 0:01:54.6]} 20... Nd7 {[%clk
0:02:17.3]} 21. Ne5 {[%clk 0:01:48.1]} 21... Nxe5 {[%clk 0:02:16.8]} 22. dxe5
{[%clk 0:01:48]} 22... Re6 {[%clk 0:02:16.8]} 23. f4 {[%clk 0:01:47.1]} 23...
Qf5 {[%clk 0:02:07.7]} 24. g4 {[%clk 0:01:41.7]} 24... Qe4 {[%clk 0:02:06.8]}
25. Qd4 {[%clk 0:01:37]} 25... Qxd4 {[%clk 0:02:00.9]} 26. exd4 {[%clk
0:01:36.7]} 26... Rf8 {[%clk 0:01:59.6]} 27. f5 {[%clk 0:01:35.1]} 27... Ree8
{[%clk 0:01:59.6]} 28. b4 {[%clk 0:01:31.5]} 28... a6 {[%clk 0:01:55.6]} 29. a4
{[%clk 0:01:28.8]} 29... Ra8 {[%clk 0:01:47]} 30. Rab1 {[%clk 0:01:20.2]} 30...
b5 {[%clk 0:01:45.2]} 31. Rfc1 {[%clk 0:01:16.2]} 31... Rfc8 {[%clk 0:01:43.7]}
32. a5 {[%clk 0:01:12.9]} 32... Kf7 {[%clk 0:01:41.2]} 33. Rc3 {[%clk
0:01:11.7]} 33... Ke7 {[%clk 0:01:40.8]} 34. Rbc1 {[%clk 0:01:09.5]} 34... Kd7
{[%clk 0:01:40.9]} 35. Kf2 {[%clk 0:01:09.8]} 35... h5 {[%clk 0:01:38.8]} 36.
Kg3 {[%clk 0:01:09.5]} 36... hxg4 {[%clk 0:01:38.3]} 37. Kxg4 {[%clk 0:01:09.7]}
37... Rc7 {[%clk 0:01:38.6]} 38. Rh1 {[%clk 0:01:03.4]} 1-0

[Event "*** Titled Tuesday Blitz"]
[Site "Chess.com"]
[Date "2020.04.21"]
[Round "7"]
[White "MarcoRiehle"]
[Black "Harsha_Bharathakoti"]
[Result "0-1"]
[WhiteElo "2603"]
[BlackElo "2788"]
[TimeControl "180+1"]
[EndTime "11:19:44 PDT"]
[Termination "Harsha_Bharathakoti won by resignation"]

1. e4 {[%clk 0:03:00.9]} 1... d6 {[%clk 0:02:59.1]} 2. d4 {[%clk 0:02:58.3]}
2... Nf6 {[%clk 0:02:58.7]} 3. f3 {[%clk 0:02:58.2]} 3... c5 {[%clk 0:02:58.1]}
4. Ne2 {[%clk 0:02:55.5]} 4... cxd4 {[%clk 0:02:58.1]} 5. Nxd4 {[%clk
0:02:56.4]} 5... Nc6 {[%clk 0:02:58.2]} 6. c4 {[%clk 0:02:55.5]} 6... g6 {[%clk
0:02:43.6]} 7. Be3 {[%clk 0:02:52.4]} 7... Bg7 {[%clk 0:02:38.5]} 8. Nc3 {[%clk
0:02:52.2]} 8... O-O {[%clk 0:02:39]} 9. Qd2 {[%clk 0:02:50.2]} 9... Bd7 {[%clk
0:02:38]} 10. Rc1 {[%clk 0:02:48.2]} 10... Nxd4 {[%clk 0:02:36.1]} 11. Bxd4
{[%clk 0:02:48]} 11... Bc6 {[%clk 0:02:36.8]} 12. b4 {[%clk 0:02:46.5]} 12... a5
{[%clk 0:02:24.9]} 13. b5 {[%clk 0:02:38.7]} 13... Bd7 {[%clk 0:02:17.2]} 14.
Nd5 {[%clk 0:02:36.1]} 14... Nxd5 {[%clk 0:02:11.6]} 15. cxd5 {[%clk 0:02:37]}
15... Rc8 {[%clk 0:02:11.9]} 16. Bxg7 {[%clk 0:02:31.7]} 16... Kxg7 {[%clk
0:02:10.8]} 17. Qd4+ {[%clk 0:02:30.5]} 17... f6 {[%clk 0:02:09.1]} 18. Rxc8
{[%clk 0:02:24.8]} 18... Qxc8 {[%clk 0:02:10]} 19. Kd2 {[%clk 0:02:23.3]} 19...
Qa8 {[%clk 0:01:28.6]} 20. a4 {[%clk 0:02:15.8]} 20... Rc8 {[%clk 0:01:28.1]}
21. Bd3 {[%clk 0:02:13.5]} 21... Rc5 {[%clk 0:01:28.7]} 22. Rc1 {[%clk
0:02:12.3]} 22... b6 {[%clk 0:01:29.4]} 23. Rxc5 {[%clk 0:02:11.3]} 23... dxc5
{[%clk 0:01:30.3]} 24. Qf2 {[%clk 0:02:08.6]} 24... Qb8 {[%clk 0:01:30.8]} 25.
f4 {[%clk 0:01:40.7]} 25... Qd6 {[%clk 0:01:27.5]} 26. g3 {[%clk 0:01:26.4]}
26... c4 {[%clk 0:01:18.7]} 27. Bxc4 {[%clk 0:01:15]} 27... Qb4+ {[%clk
0:01:18.6]} 28. Kd3 {[%clk 0:01:15.6]} 28... Qa3+ {[%clk 0:01:18.9]} 29. Kd4
{[%clk 0:01:15.6]} 29... Qc5+ {[%clk 0:01:18.5]} 0-1

[Event "*** Titled Tuesday Blitz"]
[Site "Chess.com"]
[Date "2020.04.21"]
[Round "7"]
[White "Stormeman100100"]
[Black "SirMittensofMittensville"]
[Result "0-1"]
[WhiteElo "2448"]
[BlackElo "2672"]
[TimeControl "180+1"]
[EndTime "11:19:45 PDT"]
[Termination "SirMittensofMittensville won by resignation"]

1. e4 {[%clk 0:03:00.1]} 1... e5 {[%clk 0:02:59.3]} 2. Nf3 {[%clk 0:02:59.6]}
2... Nc6 {[%clk 0:02:58.7]} 3. Bb5 {[%clk 0:02:57.9]} 3... a6 {[%clk 0:02:57.9]}
4. Ba4 {[%clk 0:02:57.5]} 4... Nf6 {[%clk 0:02:57.3]} 5. d3 {[%clk 0:02:56.3]}
5... Bc5 {[%clk 0:02:45.9]} 6. O-O {[%clk 0:02:53.9]} 6... b5 {[%clk 0:02:45.2]}
7. Bb3 {[%clk 0:02:53.5]} 7... O-O {[%clk 0:02:45.9]} 8. a4 {[%clk 0:02:53.2]}
8... Rb8 {[%clk 0:02:45.2]} 9. axb5 {[%clk 0:02:52.9]} 9... axb5 {[%clk
0:02:46.1]} 10. Nc3 {[%clk 0:02:53.4]} 10... h6 {[%clk 0:02:46.4]} 11. Nd5
{[%clk 0:02:49.5]} 11... d6 {[%clk 0:02:44.5]} 12. h3 {[%clk 0:02:46.9]} 12...
Nxd5 {[%clk 0:02:43.4]} 13. Bxd5 {[%clk 0:02:46]} 13... Ne7 {[%clk 0:02:44.3]}
14. Bb3 {[%clk 0:02:45.1]} 14... Ng6 {[%clk 0:02:45]} 15. c3 {[%clk 0:02:45.2]}
15... Qf6 {[%clk 0:02:44.6]} 16. d4 {[%clk 0:02:42]} 16... Bb6 {[%clk
0:02:42.7]} 17. Be3 {[%clk 0:02:38.8]} 17... Nf4 {[%clk 0:02:39.7]} 18. dxe5
{[%clk 0:02:16.1]} 18... dxe5 {[%clk 0:02:37.9]} 19. Bxf4 {[%clk 0:02:12.7]}
19... Qxf4 {[%clk 0:02:36.6]} 20. Qd5 {[%clk 0:02:10.4]} 20... Be6 {[%clk
0:02:33.5]} 21. Qd1 {[%clk 0:02:02.8]} 21... Rfd8 {[%clk 0:02:30.7]} 22. Qc2
{[%clk 0:02:01.2]} 22... Bxh3 {[%clk 0:02:27.9]} 23. Ne1 {[%clk 0:01:13.1]}
23... Rd2 {[%clk 0:02:22.1]} 24. Qb1 {[%clk 0:00:53.4]} 24... Rxf2 {[%clk
0:02:06.9]} 25. Rxf2 {[%clk 0:00:45.8]} 25... Qxf2+ {[%clk 0:02:01.3]} 26. Kh2
{[%clk 0:00:44.2]} 26... Bg4 {[%clk 0:01:53.4]} 0-1

[Event "*** Titled Tuesday Blitz"]
[Site "Chess.com"]
[Date "2020.04.21"]
[Round "7"]
[White "MFBerna"]
[Black "Problematique_99"]
[Result "1-0"]
[WhiteElo "2381"]
[BlackElo "2502"]
[TimeControl "180+1"]
[EndTime "11:19:45 PDT"]
[Termination "MFBerna won on time"]

1. e4 {[%clk 0:03:00.9]} 1... g6 {[%clk 0:02:59.6]} 2. d4 {[%clk 0:03:00.6]}
2... Bg7 {[%clk 0:03:00.5]} 3. Nf3 {[%clk 0:03:00.5]} 3... c6 {[%clk 0:03:00.1]}
4. Nc3 {[%clk 0:02:59.6]} 4... d5 {[%clk 0:03:00.2]} 5. h3 {[%clk 0:03:00]} 5...
Nh6 {[%clk 0:03:00.2]} 6. Be2 {[%clk 0:02:56.7]} 6... O-O {[%clk 0:02:59.4]} 7.
O-O {[%clk 0:02:56.2]} 7... f6 {[%clk 0:02:58.9]} 8. Re1 {[%clk 0:02:52]} 8...
Nf7 {[%clk 0:02:58.6]} 9. Bf1 {[%clk 0:02:45.1]} 9... e6 {[%clk 0:02:58.7]} 10.
Bf4 {[%clk 0:02:43.9]} 10... Nd7 {[%clk 0:02:54.7]} 11. Qd2 {[%clk 0:02:42]}
11... Re8 {[%clk 0:02:37.7]} 12. Bh2 {[%clk 0:02:35.9]} 12... b6 {[%clk
0:02:36.8]} 13. a4 {[%clk 0:02:32.1]} 13... a5 {[%clk 0:02:35.7]} 14. exd5
{[%clk 0:02:26.2]} 14... exd5 {[%clk 0:02:33.6]} 15. Rxe8+ {[%clk 0:02:25.3]}
15... Qxe8 {[%clk 0:02:33.9]} 16. Re1 {[%clk 0:02:25.9]} 16... Qf8 {[%clk
0:02:33.3]} 17. Qe3 {[%clk 0:02:16.7]} 17... Nd6 {[%clk 0:02:18.9]} 18. Qe6+
{[%clk 0:02:11.9]} 18... Nf7 {[%clk 0:02:15]} 19. Qxc6 {[%clk 0:02:03.2]} 19...
Ra7 {[%clk 0:02:11.7]} 20. Nxd5 {[%clk 0:01:59.1]} 1-0

[Event "*** Titled Tuesday Blitz"]
[Site "Chess.com"]
[Date "2020.04.21"]
[Round "7"]
[White "StockholmMissile"]
[Black "Echecmat"]
[Result "0-1"]
[WhiteElo "2451"]
[BlackElo "2189"]
[TimeControl "180+1"]
[EndTime "11:19:57 PDT"]
[Termination "Echecmat won by resignation"]

1. d4 {[%clk 0:03:00.9]} 1... Nf6 {[%clk 0:02:59.1]} 2. c4 {[%clk 0:03:00.9]}
2... e6 {[%clk 0:02:58.4]} 3. Nf3 {[%clk 0:03:00.5]} 3... d5 {[%clk 0:02:58.7]}
4. Bg5 {[%clk 0:02:59.7]} 4... Be7 {[%clk 0:02:58.1]} 5. e3 {[%clk 0:02:59.3]}
5... c5 {[%clk 0:02:58.3]} 6. cxd5 {[%clk 0:02:58.5]} 6... exd5 {[%clk
0:02:57.3]} 7. Nc3 {[%clk 0:02:57.8]} 7... Nc6 {[%clk 0:02:54.8]} 8. dxc5 {[%clk
0:02:54.2]} 8... Be6 {[%clk 0:02:24.8]} 9. Be2 {[%clk 0:02:51.2]} 9... Bxc5
{[%clk 0:02:21.8]} 10. O-O {[%clk 0:02:46]} 10... Be7 {[%clk 0:02:17.4]} 11. Nd4
{[%clk 0:02:43.8]} 11... O-O {[%clk 0:02:14]} 12. Nxe6 {[%clk 0:02:41.4]} 12...
fxe6 {[%clk 0:02:13.3]} 13. Nb5 {[%clk 0:02:33.2]} 13... Qb6 {[%clk 0:02:01.2]}
14. Nd4 {[%clk 0:02:30.9]} 14... Nxd4 {[%clk 0:01:40.8]} 15. exd4 {[%clk
0:02:31.8]} 15... Rfe8 {[%clk 0:01:38.1]} 16. Be3 {[%clk 0:02:19.9]} 16... Qxb2
{[%clk 0:01:31.5]} 17. Rb1 {[%clk 0:02:19.9]} 17... Qxa2 {[%clk 0:01:31.7]} 18.
Rxb7 {[%clk 0:02:19.5]} 18... Rab8 {[%clk 0:01:32]} 19. Rxb8 {[%clk 0:02:12.9]}
19... Rxb8 {[%clk 0:01:32.1]} 20. h3 {[%clk 0:02:06]} 20... Rb2 {[%clk
0:01:29.8]} 21. Bg4 {[%clk 0:02:05.6]} 21... Nxg4 {[%clk 0:01:24.1]} 22. Qxg4
{[%clk 0:02:04.7]} 22... Qa6 {[%clk 0:01:23.8]} 23. Rc1 {[%clk 0:02:02.2]} 23...
Rb8 {[%clk 0:01:19.1]} 24. g3 {[%clk 0:01:57.7]} 24... Rc8 {[%clk 0:01:15.8]}
25. Rb1 {[%clk 0:01:53.6]} 25... Qc6 {[%clk 0:01:08.4]} 26. Kh2 {[%clk
0:01:35.7]} 26... a5 {[%clk 0:01:08.1]} 27. Ra1 {[%clk 0:01:33.4]} 27... a4
{[%clk 0:01:08.2]} 28. Qd1 {[%clk 0:01:29.6]} 28... a3 {[%clk 0:01:03.6]} 29.
Bc1 {[%clk 0:01:27.2]} 29... Qc3 {[%clk 0:00:48.6]} 30. Ra2 {[%clk 0:01:25.3]}
30... Qxc1 {[%clk 0:00:42.9]} 0-1

[Event "*** Titled Tuesday Blitz"]
[Site "Chess.com"]
[Date "2020.04.21"]
[Round "7"]
[White "Sviridov_Valery"]
[Black "Maybe00"]
[Result "1-0"]
[WhiteElo "2864"]
[BlackElo "2657"]
[TimeControl "180+1"]
[EndTime "11:19:58 PDT"]
[Termination "Sviridov_Valery won by resignation"]

1. Nf3 {[%clk 0:03:00.4]} 1... d5 {[%clk 0:02:59.9]} 2. g3 {[%clk 0:03:00.2]}
2... c6 {[%clk 0:03:00.2]} 3. Bg2 {[%clk 0:03:00.8]} 3... Bg4 {[%clk 0:03:00.5]}
4. O-O {[%clk 0:03:01.2]} 4... e6 {[%clk 0:03:00.9]} 5. d4 {[%clk 0:03:01.5]}
5... Nf6 {[%clk 0:03:00.8]} 6. Nbd2 {[%clk 0:03:01.7]} 6... Be7 {[%clk
0:02:58.3]} 7. Re1 {[%clk 0:03:00.6]} 7... O-O {[%clk 0:02:58.2]} 8. e4 {[%clk
0:03:00.1]} 8... Nbd7 {[%clk 0:02:57.3]} 9. c3 {[%clk 0:02:59.7]} 9... Rc8
{[%clk 0:02:56.5]} 10. a4 {[%clk 0:02:58.9]} 10... a6 {[%clk 0:02:51]} 11. a5
{[%clk 0:02:57.3]} 11... dxe4 {[%clk 0:02:38.4]} 12. Nxe4 {[%clk 0:02:56.8]}
12... Nxe4 {[%clk 0:02:39]} 13. Rxe4 {[%clk 0:02:57.7]} 13... Bf5 {[%clk
0:02:39.4]} 14. Re1 {[%clk 0:02:57.6]} 14... h6 {[%clk 0:02:39.6]} 15. Qb3
{[%clk 0:02:56.7]} 15... Qc7 {[%clk 0:02:23.8]} 16. Bf4 {[%clk 0:02:55.9]} 16...
Bd6 {[%clk 0:02:24.1]} 17. Bxd6 {[%clk 0:02:53.6]} 17... Qxd6 {[%clk 0:02:25]}
18. Qxb7 {[%clk 0:02:52.1]} 18... Rb8 {[%clk 0:02:25.2]} 19. Qxa6 {[%clk
0:02:52.4]} 19... Rxb2 {[%clk 0:02:25.2]} 20. Nh4 {[%clk 0:02:22.4]} 20... Nb8
{[%clk 0:01:58.2]} 21. Nxf5 {[%clk 0:02:19.3]} 21... exf5 {[%clk 0:01:56.4]} 22.
Qd3 {[%clk 0:02:19.2]} 22... f4 {[%clk 0:01:38.8]} 23. a6 {[%clk 0:02:18.4]}
23... fxg3 {[%clk 0:01:39.1]} 24. hxg3 {[%clk 0:02:18.5]} 24... Nd7 {[%clk
0:01:36.2]} 25. Qc4 {[%clk 0:02:12.9]} 25... Qf6 {[%clk 0:01:17.9]} 26. Rf1
{[%clk 0:02:12.3]} 26... Rb6 {[%clk 0:01:10]} 27. Rfb1 {[%clk 0:02:10.5]} 27...
Rxb1+ {[%clk 0:00:48.5]} 28. Rxb1 {[%clk 0:02:11.4]} 28... Qf5 {[%clk
0:00:43.2]} 29. Ra1 {[%clk 0:02:10]} 29... Rb8 {[%clk 0:00:41.7]} 30. a7 {[%clk
0:01:54.3]} 30... Rb1+ {[%clk 0:00:41.3]} 31. Rxb1 {[%clk 0:01:54.3]} 31...
Qxb1+ {[%clk 0:00:42.2]} 32. Bf1 {[%clk 0:01:53.9]} 32... Qa1 {[%clk 0:00:34.3]}
33. Qa6 {[%clk 0:01:53.8]} 33... Qxa6 {[%clk 0:00:31.8]} 34. Bxa6 {[%clk
0:01:54.7]} 34... Nb6 {[%clk 0:00:32.5]} 35. Bb7 {[%clk 0:01:54.9]} 35... Kf8
{[%clk 0:00:33.1]} 36. c4 {[%clk 0:01:54.5]} 1-0

[Event "*** Titled Tuesday Blitz"]
[Site "Chess.com"]
[Date "2020.04.21"]
[Round "7"]
[White "blobica"]
[Black "davigator"]
[Result "1-0"]
[WhiteElo "2539"]
[BlackElo "2389"]
[TimeControl "180+1"]
[EndTime "11:20:02 PDT"]
[Termination "blobica won by resignation"]

1. e4 {[%clk 0:03:00.9]} 1... c5 {[%clk 0:02:57.9]} 2. Nf3 {[%clk 0:03:00.8]}
2... Nc6 {[%clk 0:02:57.8]} 3. Bb5 {[%clk 0:03:00.2]} 3... g6 {[%clk 0:02:56.8]}
4. Bxc6 {[%clk 0:02:59.4]} 4... bxc6 {[%clk 0:02:57.7]} 5. O-O {[%clk
0:02:59.1]} 5... Bg7 {[%clk 0:02:58.1]} 6. Re1 {[%clk 0:02:58.7]} 6... e5 {[%clk
0:02:57.7]} 7. c3 {[%clk 0:02:49.5]} 7... d6 {[%clk 0:02:44.4]} 8. h3 {[%clk
0:02:46.8]} 8... Ne7 {[%clk 0:02:42.2]} 9. Na3 {[%clk 0:02:36.4]} 9... O-O
{[%clk 0:02:41]} 10. d4 {[%clk 0:02:35.2]} 10... exd4 {[%clk 0:02:34]} 11. cxd4
{[%clk 0:02:35.2]} 11... cxd4 {[%clk 0:02:34.6]} 12. Nxd4 {[%clk 0:02:34.8]}
12... d5 {[%clk 0:02:28.7]} 13. exd5 {[%clk 0:02:27]} 13... cxd5 {[%clk
0:02:28.1]} 14. Bg5 {[%clk 0:02:22.2]} 14... f6 {[%clk 0:02:28]} 15. Bf4 {[%clk
0:02:18.6]} 15... Rf7 {[%clk 0:02:26.8]} 16. Nab5 {[%clk 0:02:14]} 16... a6
{[%clk 0:02:21.6]} 17. Nd6 {[%clk 0:01:38]} 17... Rf8 {[%clk 0:01:55.9]} 18. Ne6
{[%clk 0:01:35]} 18... Bxe6 {[%clk 0:01:54.1]} 19. Rxe6 {[%clk 0:01:34.7]} 19...
Qd7 {[%clk 0:01:49.5]} 20. Qe2 {[%clk 0:01:31.5]} 20... Ra7 {[%clk 0:01:47.3]}
21. Re1 {[%clk 0:01:25.5]} 21... Nf5 {[%clk 0:01:39.3]} 22. Nxf5 {[%clk
0:01:24]} 22... gxf5 {[%clk 0:01:38.7]} 23. Qd3 {[%clk 0:01:06.3]} 23... Qb5
{[%clk 0:01:35]} 24. Qxf5 {[%clk 0:01:03.7]} 24... Qxb2 {[%clk 0:01:33.4]} 25.
Bd6 {[%clk 0:01:01.2]} 25... Rff7 {[%clk 0:01:07.2]} 26. Re8+ {[%clk 0:00:59]}
26... Bf8 {[%clk 0:01:07.7]} 27. Qg4+ {[%clk 0:00:58.5]} 27... Kh8 {[%clk
0:01:07.5]} 28. Bxf8 {[%clk 0:00:56.8]} 1-0

[Event "*** Titled Tuesday Blitz"]
[Site "Chess.com"]
[Date "2020.04.21"]
[Round "7"]
[White "canary2016"]
[Black "IM_Tissir"]
[Result "0-1"]
[WhiteElo "1866"]
[BlackElo "2513"]
[TimeControl "180+1"]
[EndTime "11:20:08 PDT"]
[Termination "IM_Tissir won by resignation"]

1. Nf3 {[%clk 0:03:00.9]} 1... Nf6 {[%clk 0:02:58.3]} 2. g3 {[%clk 0:03:00.3]}
2... g6 {[%clk 0:02:58.2]} 3. Bg2 {[%clk 0:03:00.5]} 3... Bg7 {[%clk 0:02:58.2]}
4. O-O {[%clk 0:03:00.6]} 4... O-O {[%clk 0:02:58.4]} 5. d4 {[%clk 0:03:00.6]}
5... d6 {[%clk 0:02:56.6]} 6. c4 {[%clk 0:03:00.6]} 6... a6 {[%clk 0:02:56.7]}
7. Nc3 {[%clk 0:02:59.7]} 7... Nbd7 {[%clk 0:02:55.3]} 8. e4 {[%clk 0:02:57.6]}
8... c5 {[%clk 0:02:54.5]} 9. d5 {[%clk 0:02:51.4]} 9... b5 {[%clk 0:02:54.1]}
10. cxb5 {[%clk 0:02:47.8]} 10... axb5 {[%clk 0:02:53.3]} 11. Re1 {[%clk
0:02:45]} 11... b4 {[%clk 0:02:52]} 12. Nb1 {[%clk 0:02:42.6]} 12... Ng4 {[%clk
0:02:41.6]} 13. Nbd2 {[%clk 0:02:38.5]} 13... Ba6 {[%clk 0:02:40.9]} 14. Bf1
{[%clk 0:02:34]} 14... Bxf1 {[%clk 0:02:33]} 15. Kxf1 {[%clk 0:02:33.1]} 15...
Qa5 {[%clk 0:02:29.9]} 16. Kg2 {[%clk 0:02:30.6]} 16... Qa6 {[%clk 0:02:27.2]}
17. h3 {[%clk 0:02:28.6]} 17... Nge5 {[%clk 0:02:27.1]} 18. Nxe5 {[%clk
0:02:24.2]} 18... Nxe5 {[%clk 0:02:27.9]} 19. Nf3 {[%clk 0:02:24.2]} 19... Nd3
{[%clk 0:02:23.3]} 20. Rf1 {[%clk 0:02:15]} 20... Nxb2 {[%clk 0:02:21.5]} 21.
Bxb2 {[%clk 0:02:12.7]} 21... Bxb2 {[%clk 0:02:22.4]} 22. Rb1 {[%clk 0:02:12.2]}
22... Qxa2 {[%clk 0:02:19.9]} 23. Re1 {[%clk 0:02:10]} 23... Bg7 {[%clk
0:02:19.3]} 24. Re2 {[%clk 0:02:08.8]} 24... Qa4 {[%clk 0:02:16.3]} 25. Qc1
{[%clk 0:02:03.2]} 25... Rfc8 {[%clk 0:02:12.1]} 26. Nd2 {[%clk 0:02:01.3]}
26... Qb5 {[%clk 0:02:03.5]} 27. Nc4 {[%clk 0:01:58.5]} 27... Bd4 {[%clk
0:01:59.7]} 28. Rd2 {[%clk 0:01:45.7]} 28... Qa6 {[%clk 0:01:22.3]} 29. Re2
{[%clk 0:01:30.6]} 29... Bc3 {[%clk 0:01:20.2]} 30. Re3 {[%clk 0:01:27]} 30...
Qxc4 {[%clk 0:01:19.1]} 31. e5 {[%clk 0:01:21.2]} 31... Qxd5+ {[%clk 0:01:17.6]}
32. Kg1 {[%clk 0:01:20.5]} 32... Bxe5 {[%clk 0:01:16.1]} 33. Qe1 {[%clk
0:01:13.6]} 33... Ra2 {[%clk 0:01:14]} 34. f4 {[%clk 0:01:13]} 34... Bd4 {[%clk
0:01:12.9]} 0-1

[Event "*** Titled Tuesday Blitz"]
[Site "Chess.com"]
[Date "2020.04.21"]
[Round "7"]
[White "AniJak"]
[Black "SlavenPastar"]
[Result "1-0"]
[WhiteElo "2266"]
[BlackElo "2382"]
[TimeControl "180+1"]
[EndTime "11:20:11 PDT"]
[Termination "AniJak won by resignation"]

1. e4 {[%clk 0:03:00.9]} 1... b6 {[%clk 0:02:48.1]} 2. d4 {[%clk 0:03:00.1]}
2... Bb7 {[%clk 0:02:48]} 3. Nc3 {[%clk 0:03:00.5]} 3... e6 {[%clk 0:02:47.5]}
4. Bd3 {[%clk 0:02:58.5]} 4... Nf6 {[%clk 0:02:46]} 5. Nge2 {[%clk 0:02:57.5]}
5... d5 {[%clk 0:02:44.2]} 6. e5 {[%clk 0:02:53.2]} 6... Ne4 {[%clk 0:02:41.5]}
7. O-O {[%clk 0:02:46.9]} 7... Nxc3 {[%clk 0:02:38.5]} 8. bxc3 {[%clk
0:02:46.4]} 8... c5 {[%clk 0:02:37]} 9. f4 {[%clk 0:02:44.8]} 9... c4 {[%clk
0:02:36.3]} 10. f5 {[%clk 0:02:33.7]} 10... cxd3 {[%clk 0:02:34.4]} 11. cxd3
{[%clk 0:02:34.3]} 11... exf5 {[%clk 0:02:24.9]} 12. Rxf5 {[%clk 0:02:32.7]}
12... Bc8 {[%clk 0:02:16.8]} 13. Rf2 {[%clk 0:02:30.6]} 13... Be7 {[%clk
0:02:09.4]} 14. Ng3 {[%clk 0:02:28.9]} 14... O-O {[%clk 0:02:06.6]} 15. Nh5
{[%clk 0:02:24.4]} 15... f6 {[%clk 0:01:56.3]} 16. Qf3 {[%clk 0:02:12.9]} 16...
Qd7 {[%clk 0:01:23]} 17. h3 {[%clk 0:02:04.3]} 17... f5 {[%clk 0:01:08.7]} 18.
Qg3 {[%clk 0:01:57.8]} 18... g6 {[%clk 0:01:08.7]} 19. Bh6 {[%clk 0:01:55.9]}
19... Re8 {[%clk 0:00:58.1]} 20. Re1 {[%clk 0:01:48.2]} 20... Bd8 {[%clk
0:00:45.9]} 21. Ng7 {[%clk 0:01:47.4]} 21... Re7 {[%clk 0:00:33.5]} 22. Nxf5
{[%clk 0:01:47.1]} 22... Qxf5 {[%clk 0:00:32.7]} 23. Rxf5 {[%clk 0:01:46.4]}
23... Bxf5 {[%clk 0:00:33.6]} 24. Bg5 {[%clk 0:01:36.4]} 24... Re8 {[%clk
0:00:33.7]} 25. Bxd8 {[%clk 0:01:33.8]} 25... Rxd8 {[%clk 0:00:34.6]} 26. Qg5
{[%clk 0:01:33.2]} 26... Nd7 {[%clk 0:00:27]} 27. e6 {[%clk 0:01:32.3]} 27...
Nb8 {[%clk 0:00:19.9]} 28. Qxd8+ {[%clk 0:01:31.5]} 1-0

[Event "*** Titled Tuesday Blitz"]
[Site "Chess.com"]
[Date "2020.04.21"]
[Round "7"]
[White "ENEASZ"]
[Black "BakaPG"]
[Result "0-1"]
[WhiteElo "2518"]
[BlackElo "2702"]
[TimeControl "180+1"]
[EndTime "11:20:14 PDT"]
[Termination "BakaPG won by checkmate"]

1. e4 {[%clk 0:03:00.9]} 1... e6 {[%clk 0:02:59.1]} 2. d4 {[%clk 0:03:00.8]}
2... d5 {[%clk 0:02:58.3]} 3. Bd3 {[%clk 0:03:01.3]} 3... Nf6 {[%clk 0:02:57.1]}
4. e5 {[%clk 0:03:00.8]} 4... Nfd7 {[%clk 0:02:57.7]} 5. f4 {[%clk 0:03:01.4]}
5... c5 {[%clk 0:02:58.1]} 6. c3 {[%clk 0:03:01.9]} 6... Nc6 {[%clk 0:02:58.3]}
7. Nf3 {[%clk 0:03:01.1]} 7... g6 {[%clk 0:02:53.5]} 8. O-O {[%clk 0:02:59.4]}
8... a6 {[%clk 0:02:51.6]} 9. Kh1 {[%clk 0:02:47.6]} 9... b5 {[%clk 0:02:48.4]}
10. Be3 {[%clk 0:02:47.4]} 10... Qb6 {[%clk 0:02:45.8]} 11. Nbd2 {[%clk
0:02:28.5]} 11... Bb7 {[%clk 0:02:43.3]} 12. dxc5 {[%clk 0:02:17.2]} 12... Bxc5
{[%clk 0:02:40.2]} 13. Bxc5 {[%clk 0:02:16.7]} 13... Nxc5 {[%clk 0:02:39.5]} 14.
Nb3 {[%clk 0:02:17.3]} 14... Ne4 {[%clk 0:02:37.6]} 15. Qe1 {[%clk 0:02:09.4]}
15... Ne7 {[%clk 0:02:34.3]} 16. Nbd4 {[%clk 0:02:03.3]} 16... Nf5 {[%clk
0:02:29.7]} 17. a3 {[%clk 0:01:31.3]} 17... h5 {[%clk 0:02:27.5]} 18. Rd1 {[%clk
0:01:28]} 18... h4 {[%clk 0:02:27.1]} 19. Nxf5 {[%clk 0:01:17.8]} 19... gxf5
{[%clk 0:02:21.7]} 20. Nd4 {[%clk 0:01:17.4]} 20... h3 {[%clk 0:02:18.5]} 21. g3
{[%clk 0:01:10.6]} 21... O-O-O {[%clk 0:02:07.9]} 22. a4 {[%clk 0:01:06.6]}
22... bxa4 {[%clk 0:02:04]} 23. Qe2 {[%clk 0:01:05.5]} 23... a3 {[%clk
0:02:01.9]} 24. Rb1 {[%clk 0:00:54.7]} 24... a2 {[%clk 0:01:44]} 25. Ra1 {[%clk
0:00:54.6]} 25... Rhg8 {[%clk 0:01:44]} 26. Bxe4 {[%clk 0:00:53.3]} 26... dxe4
{[%clk 0:01:43.2]} 27. Rxa2 {[%clk 0:00:41.5]} 27... Rxd4 {[%clk 0:01:35.3]} 28.
cxd4 {[%clk 0:00:39.7]} 28... e3+ {[%clk 0:01:33]} 29. Kg1 {[%clk 0:00:38.9]}
29... Qc6 {[%clk 0:01:31.5]} 30. Qxe3 {[%clk 0:00:20.9]} 30... Qg2# {[%clk
0:01:30.4]} 0-1